fUSD/lending_fUSD_20240426
["ID","MTS","AMOUNT","RATE_DAILY","PERIOD"]
[323675598,1714158646829,-500.0,0.00011075,2]
[323675599,1714158646838,-500.0,0.00011075,2]
[323675600,1714158646847,-500.0,0.00011075,2]
[323675601,1714158646856,-500.0,0.00011075,2]
[323675603,1714158646866,-500.0,0.00011075,2]
[323675604,1714158646875,-576.2703296,0.00011075,2]
[323675605,1714158646884,-500.0,0.00011075,2]
[323675606,1714158646894,-500.0,0.00011075,2]
[323675607,1714158646903,-500.0,0.00011075,2]
[323675608,1714158646912,-500.0,0.00011075,2]
[323675609,1714158646922,-500.0,0.00011075,2]
[323675610,1714158646931,-500.0,0.00011075,2]
[323675611,1714158646941,-500.0,0.00011075,2]
[323675612,1714158646951,-500.0,0.00011075,2]
[323675613,1714158646960,-500.0,0.00011075,2]
[323675614,1714158646970,-500.0,0.00011075,2]
[323675615,1714158646979,-500.0,0.00011075,2]
[323675616,1714158646989,-500.0,0.00011075,2]
[323675617,1714158646998,-500.0,0.00011075,2]
[323675618,1714158647007,-500.0,0.00011075,2]
[323675619,1714158647017,-616.82,0.00011075,2]
[323675620,1714158647026,-500.0,0.00011075,2]
[323675621,1714158647035,-500.0,0.00011075,2]
[323675622,1714158647044,-500.0,0.00011075,2]
[323675623,1714158647053,-500.0,0.00011075,2]
[323675624,1714158647062,-500.0,0.00011075,2]
[323675625,1714158647072,-500.0,0.00011075,2]
[323675626,1714158647081,-500.0,0.00011075,2]
[323675627,1714158647090,-500.0,0.00011075,2]
[323675628,1714158647100,-500.0,0.00011075,2]
[323675629,1714158647110,-500.0,0.00011075,2]
[323675630,1714158647121,-500.0,0.00011075,2]
[323675631,1714158647131,-503.29,0.00011075,2]
[323675632,1714158647140,-500.0,0.00011075,2]
[323675633,1714158647149,-500.0,0.00011075,2]
[323675634,1714158647158,-180.72,0.00011075,2]
[323675635,1714158647170,-500.0,0.00011075,2]
[323675636,1714158647181,-500.0,0.00011075,2]
[323675637,1714158647191,-500.0,0.00011075,2]
[323675638,1714158647201,-500.0,0.00011075,2]
[323675639,1714158647211,-500.0,0.00011075,2]
[323675640,1714158647222,-500.0,0.00011075,2]
[323675641,1714158647232,-500.0,0.00011075,2]
[323675642,1714158647243,-500.0,0.00011075,2]
[323675643,1714158647256,-500.0,0.00011075,2]
[323675644,1714158647266,-500.0,0.00011075,2]
[323675645,1714158647276,-500.0,0.00011075,2]
[323675646,1714158647285,-500.0,0.00011075,2]
[323675647,1714158647295,-500.0,0.00011075,2]
[323675648,1714158647305,-500.0,0.00011075,2]
[323675649,1714158647314,-727.56,0.00011075,2]
[323675650,1714158647325,-606.66,0.00011075,2]
[323675651,1714158647334,-500.0,0.00011075,2]
[323675652,1714158647346,-500.0,0.00011075,2]
[323675653,1714158647356,-500.0,0.00011075,2]
[323675654,1714158647366,-432.32809186,0.00011075,2]
[323675655,1714158647375,-633.97,0.00011075,2]
[323675656,1714158647384,-538.02,0.00011075,2]
[323675657,1714158647394,-700.41,0.00011075,2]
[323675658,1714158647403,-500.0,0.00011075,2]
[323675659,1714158647413,-270.5396822,0.00011075,2]
[323675660,1714158647422,-508.06,0.00011075,2]
[323675661,1714158647432,-500.0,0.00011075,2]
[323675662,1714158647441,-500.0,0.00011075,2]
[323675663,1714158647450,-500.0,0.00011075,2]
[323675664,1714158647460,-500.0,0.00011075,2]
[323675665,1714158647469,-677.6,0.00011075,2]
[323675666,1714158647478,-500.0,0.00011075,2]
[323675667,1714158647554,-500.0,0.00011075,2]
[323675668,1714158647563,-500.0,0.00011075,2]
[323675669,1714158647572,-500.0,0.00011075,2]
[323675670,1714158647581,-500.0,0.00011075,2]
[323675671,1714158647590,-1252.35,0.00011075,2]
[323675672,1714158647600,-500.0,0.00011075,2]
[323675673,1714158647609,-500.0,0.00011075,2]
[323675674,1714158647618,-500.0,0.00011075,2]
[323675675,1714158647627,-500.0,0.00011075,2]
[323675676,1714158647636,-500.0,0.00011075,2]
[323675677,1714158647645,-500.0,0.00011075,2]
[323675678,1714158647653,-500.0,0.00011075,2]
[323675679,1714158647662,-500.0,0.00011075,2]
[323675680,1714158647671,-500.0,0.00011075,2]
[323675681,1714158647679,-500.0,0.00011075,2]
[323675682,1714158647688,-500.0,0.00011075,2]
[323675683,1714158647697,-500.0,0.00011075,2]
[323675684,1714158647706,-717.89,0.00011075,2]
[323675685,1714158647715,-755.97,0.00011075,2]
[323675686,1714158647724,-500.0,0.00011075,2]
[323675687,1714158647733,-500.0,0.00011075,2]
[323675688,1714158647742,-500.0,0.00011075,2]
[323675689,1714158647751,-500.0,0.00011075,2]
[323675690,1714158647760,-679.06,0.00011075,2]
[323675691,1714158647769,-500.0,0.00011075,2]
[323675692,1714158647778,-500.0,0.00011075,2]
[323675693,1714158647787,-624.5,0.00011075,2]
[323675694,1714158647796,-500.0,0.00011075,2]
[323675695,1714158647805,-500.0,0.00011075,2]
[323675696,1714158647814,-500.0,0.00011075,2]
[323675697,1714158647823,-500.0,0.00011075,2]
[323675698,1714158647832,-500.0,0.00011075,2]
[323675699,1714158647841,-500.0,0.00011075,2]
[323675700,1714158647850,-500.0,0.00011075,2]
[323675701,1714158647859,-1455.14,0.00011075,2]
[323675702,1714158647869,-500.0,0.00011075,2]
[323675703,1714158647878,-467.28500276,0.00011075,2]
[323675704,1714158647887,-730.91,0.00011075,2]
[323675705,1714158647897,-966.42,0.00011075,2]
[323675706,1714158647905,-500.0,0.00011075,2]
[323675707,1714158647914,-500.0,0.00011075,2]
[323675708,1714158647923,-500.0,0.00011075,2]
[323675709,1714158647932,-500.0,0.00011075,2]
[323675710,1714158647941,-824.9,0.00011075,2]
[323675711,1714158647950,-500.0,0.00011075,2]
[323675712,1714158647959,-979.87,0.00011075,2]
[323675713,1714158647968,-721.92,0.00011075,2]
[323675714,1714158647977,-500.0,0.00011075,2]
[323675715,1714158647986,-500.0,0.00011075,2]
[323675716,1714158647995,-500.0,0.00011075,2]
[323675717,1714158648004,-500.0,0.00011075,2]
[323675718,1714158648013,-500.0,0.00011075,2]
[323675719,1714158648022,-151.0,0.00011075,2]
[323675720,1714158648031,-500.0,0.00011075,2]
[323675721,1714158648040,-500.0,0.00011075,2]
[323675722,1714158648049,-1090.83,0.00011075,2]
[323675723,1714158648058,-857.67,0.00011075,2]
[323675724,1714158648067,-500.0,0.00011075,2]
[323675725,1714158648076,-500.0,0.00011075,2]
[323675726,1714158648086,-500.0,0.00011075,2]
[323675727,1714158648094,-500.0,0.00011075,2]
[323675728,1714158648103,-500.0,0.00011075,2]
[323675729,1714158648112,-500.0,0.00011075,2]
[323675730,1714158648122,-1157.95,0.00011075,2]
[323675731,1714158648131,-500.0,0.00011075,2]
[323675732,1714158648140,-500.0,0.00011075,2]
[323675733,1714158648149,-500.0,0.00011075,2]
[323675734,1714158648158,-500.0,0.00011075,2]
[323675735,1714158648167,-500.0,0.00011075,2]
[323675736,1714158648179,-500.0,0.00011075,2]
[323675737,1714158648188,-500.0,0.00011075,2]
[323675738,1714158648197,-500.0,0.00011075,2]
[323675739,1714158648206,-508.90198079,0.00011075,2]
[323675740,1714158648215,-500.0,0.00011075,2]
[323675741,1714158648226,-622.88,0.00011075,2]
[323675742,1714158648235,-500.0,0.00011075,2]
[323675743,1714158648246,-895.0,0.00011075,2]
[323675744,1714158648255,-500.0,0.00011075,2]
[323675745,1714158648264,-500.0,0.00011075,2]
[323675746,1714158648273,-500.0,0.00011075,2]
[323675747,1714158648283,-500.0,0.00011075,2]
[323675748,1714158648292,-500.0,0.00011075,2]
[323675749,1714158648301,-500.0,0.00011075,2]
[323675750,1714158648310,-501.6464326,0.00011075,2]
[323675751,1714158648319,-520.42,0.00011075,2]
[323675752,1714158648328,-500.0,0.00011075,2]
[323675753,1714158648337,-706.13,0.00011075,2]
[323675754,1714158648346,-500.0,0.00011075,2]
[323675755,1714158648355,-3011.67433,0.00011075,2]
[323675756,1714158648364,-3011.67433,0.00011075,2]
[323675757,1714158648374,-500.0,0.00011075,2]
[323675758,1714158648383,-1182.59,0.00011075,2]
[323675759,1714158648392,-500.0,0.00011075,2]
[323675760,1714158648401,-504.54,0.00011075,2]
[323675761,1714158648411,-500.0,0.00011075,2]
[323675762,1714158648420,-500.0,0.00011075,2]
[323675763,1714158648429,-500.0,0.00011075,2]
[323675764,1714158648441,-500.0,0.00011075,2]
[323675765,1714158648452,-967.6,0.00011075,2]
[323675766,1714158648462,-1330.11,0.00011075,2]
[323675767,1714158648472,-500.0,0.00011075,2]
[323675768,1714158648481,-500.0,0.00011075,2]
[323675769,1714158648490,-1347.26,0.00011075,2]
[323675770,1714158648499,-500.0,0.00011075,2]
[323675771,1714158648508,-507.77650668,0.00011076,2]
[323675772,1714158648517,-500.0,0.00011076,2]
[323675773,1714158648527,-500.0,0.00011076,2]
[323675774,1714158648537,-500.0,0.00011076,2]
[323675775,1714158648547,-498.84989153,0.00011076,2]
[323675776,1714158648556,-500.0,0.00011076,2]
[323675777,1714158648567,-487.41615886,0.00011076,2]
[323675778,1714158648577,-155.0,0.00011076,2]
[323675779,1714158648586,-500.0,0.00011076,2]
[323675780,1714158648595,-500.0,0.00011077,2]
[323675781,1714158648606,-500.0,0.00011077,2]
[323675782,1714158648616,-1003.54,0.00011077,2]
[323675783,1714158648627,-500.0,0.00011077,2]
[323675784,1714158648637,-734.66,0.00011077,2]
[323675785,1714158648646,-500.0,0.00011077,2]
[323675786,1714158648656,-151.0,0.00011077,2]
[323675787,1714158648665,-175.57779374,0.00011139,2]
[323675788,1714158648675,-500.0,0.00011176,2]
[323675789,1714158648685,-500.0,0.00011176,2]
[323675790,1714158648694,-500.0,0.00011236,2]
[323675791,1714158648705,-500.0,0.00011236,2]
[323675792,1714158648716,-1320.56,0.00011236,2]
[323675793,1714158648725,-1393.78,0.00011237,2]
[323675794,1714158648735,-3246.98,0.00011237,2]
[323675795,1714158648744,-1098.56,0.00011237,2]
[323675796,1714158648753,-1745.17,0.00011237,2]
[323675797,1714158648762,-1129.76,0.00011237,2]
[323675798,1714158648771,-1217.1,0.00011237,2]
[323675799,1714158648782,-1533.64,0.00011237,2]
[323675800,1714158648791,-546.74,0.00011237,2]
[323675801,1714158648802,-1337.11,0.00011237,2]
[323675802,1714158648811,-781.72,0.00011237,2]
[323675803,1714158648821,-514.21,0.00011237,2]
[323675804,1714158648831,-1372.03,0.00011237,2]
[323675805,1714158648840,-3011.67433,0.00011237,2]
[323675806,1714158648850,-2139.9,0.00011237,2]
[323675807,1714158648861,-3011.67433,0.00011237,2]
[323675808,1714158648870,-500.0,0.00011237,2]
[323675809,1714158648882,-2376.79,0.00011237,2]
[323675810,1714158648891,-918.04,0.00011237,2]
[323675811,1714158648901,-2103.83,0.00011237,2]
[323675812,1714158648911,-500.0,0.00011237,2]
[323675813,1714158648920,-500.0,0.00011237,2]
[323675814,1714158648929,-1106.33,0.00011237,2]
[323675815,1714158648939,-3860.44,0.00011237,2]
[323675816,1714158648948,-1727.14,0.00011237,2]
[323675817,1714158648957,-2874.95,0.00011237,2]
[323675818,1714158648967,-2390.11,0.00011237,2]
[323675819,1714158648976,-500.0,0.00011237,2]
[323675820,1714158648985,-1464.34,0.00011237,2]
[323675821,1714158648995,-846.63,0.00011237,2]
[323675822,1714158649004,-969.85,0.00011237,2]
[323675823,1714158649013,-1732.94,0.00011237,2]
[323675824,1714158649023,-2014.97,0.00011237,2]
[323675825,1714158649033,-2456.22,0.00011237,2]
[323675826,1714158649044,-923.25,0.00011237,2]
[323675827,1714158649054,-1709.96,0.00011237,2]
[323675828,1714158649064,-1794.29,0.00011237,2]
[323675829,1714158649074,-4908.24,0.00011237,2]
[323675830,1714158649083,-1153.89,0.00011237,2]
[323675831,1714158649094,-1049.77,0.00011237,2]
[323675832,1714158649104,-939.31,0.00011237,2]
[323675833,1714158649114,-1218.06,0.00011237,2]
[323675834,1714158649124,-1127.34,0.00011237,2]
[323675835,1714158649134,-1064.46,0.00011237,2]
[323675836,1714158649144,-688.32,0.00011237,2]
[323675837,1714158649154,-980.48,0.00011237,2]
[323675838,1714158649163,-4994.93,0.00011237,2]
[323675839,1714158649175,-911.9,0.00011237,2]
[323675840,1714158649185,-504.46913743,0.00011237,2]
[323675841,1714158649195,-500.0,0.00011237,2]
[323675842,1714158649207,-946.14,0.00011237,2]
[323675843,1714158649219,-500.0,0.00011237,2]
[323675844,1714158649230,-500.0,0.00011237,2]
[323675845,1714158649240,-500.0,0.00011237,2]
[323675846,1714158649252,-500.0,0.00011237,2]
[323675847,1714158649262,-500.0,0.00011237,2]
[323675848,1714158649272,-500.0,0.00011237,2]
[323675849,1714158649282,-500.0,0.00011237,2]
[323675850,1714158649293,-500.0,0.00011237,2]
[323675851,1714158649304,-500.0,0.00011237,2]
[323675852,1714158649316,-500.0,0.00011237,2]
[323675853,1714158649328,-2278.55,0.00011237,2]
[323675854,1714158649338,-3513.75,0.00011237,2]
[323675855,1714158649351,-2587.33,0.00011237,2]
[323675856,1714158649361,-1030.03,0.00011237,2]
[323675857,1714158649373,-500.0,0.00011237,2]
[323675858,1714158649385,-500.0,0.00011237,2]
[323675859,1714158649397,-4217.69,0.00011237,2]
[323675860,1714158649407,-500.0,0.00011237,2]
[323675861,1714158649419,-500.0,0.00011237,2]
[323675862,1714158649430,-500.0,0.00011237,2]
[323675863,1714158649440,-543.21,0.00011237,2]
[323675864,1714158649451,-6354.45,0.00011237,2]
[323675865,1714158649461,-500.0,0.00011238,2]
[323675866,1714158649472,-500.0,0.00011238,2]
[323675867,1714158649482,-500.0,0.00011238,2]
[323675868,1714158649493,-500.0,0.00011238,2]
[323675869,1714158649502,-500.0,0.00011238,2]
[323675870,1714158649513,-786.35,0.00011238,2]
[323675871,1714158649523,-500.0,0.00011238,2]
[323675872,1714158649534,-1268.62,0.00011238,2]
[323675873,1714158649545,-500.0,0.00011238,2]
[323675874,1714158649558,-500.0,0.00011238,2]
[323675875,1714158649569,-500.0,0.00011238,2]
[323675876,1714158649579,-500.0,0.00011238,2]
[323675877,1714158649590,-259.33,0.00011238,2]
[323675878,1714158649599,-500.0,0.00011238,2]
[323675879,1714158649609,-500.0,0.00011238,2]
[323675880,1714158649620,-1594.4,0.00011238,2]
[323675881,1714158649630,-500.0,0.00011238,2]
[323675882,1714158649640,-182.93,0.00011238,2]
[323675883,1714158649650,-696.39,0.00011238,2]
[323675884,1714158649660,-158.29994292,0.00011238,2]
[323675885,1714158649671,-554.82232512,0.00011238,2]
[323675886,1714158649680,-500.0,0.00011238,2]
[323675887,1714158649690,-520.79,0.00011238,2]
[323675888,1714158649701,-500.0,0.00011238,2]
[323675889,1714158649712,-500.0,0.00011238,2]
[323675890,1714158649723,-500.0,0.00011238,2]
[323675891,1714158649732,-1018.42,0.00011238,2]
[323675892,1714158649742,-500.0,0.00011238,2]
[323675893,1714158649753,-500.0,0.00011238,2]
[323675894,1714158649764,-500.0,0.00011238,2]
[323675895,1714158649774,-1574.78,0.00011238,2]
[323675896,1714158649785,-231.28,0.00011238,2]
[323675897,1714158649795,-500.0,0.00011238,2]
[323675898,1714158649804,-500.0,0.00011238,2]
[323675899,1714158649815,-593.22,0.00011238,2]
[323675900,1714158649826,-1639.71,0.00011238,2]
[323675901,1714158649836,-500.0,0.00011238,2]
[323675902,1714158649847,-500.0,0.00011238,2]
[323675903,1714158649859,-500.0,0.00011238,2]
[323675904,1714158649870,-500.0,0.00011238,2]
[323675905,1714158649879,-505.50605674,0.00011238,2]
[323675906,1714158649889,-500.0,0.00011238,2]
[323675907,1714158649899,-248.77,0.00011238,2]
[323675908,1714158649909,-687.62,0.00011238,2]
[323675909,1714158649920,-500.0,0.00011238,2]
[323675910,1714158649929,-500.0,0.00011238,2]
[323675911,1714158649939,-500.0,0.00011238,2]
[323675912,1714158649949,-1809.33,0.00011238,2]
[323675913,1714158649958,-500.0,0.00011238,2]
[323675914,1714158649968,-500.0,0.00011238,2]
[323675915,1714158649978,-500.0,0.00011238,2]
[323675916,1714158649988,-500.0,0.00011238,2]
[323675917,1714158649998,-500.0,0.00011238,2]
[323675918,1714158650007,-500.0,0.00011238,2]
[323675919,1714158650017,-500.0,0.00011238,2]
[323675920,1714158650027,-500.0,0.00011238,2]
[323675921,1714158650038,-500.0,0.00011238,2]
[323675922,1714158650048,-500.0,0.00011238,2]
[323675923,1714158650058,-614.4,0.00011238,2]
[323675924,1714158650068,-500.0,0.00011238,2]
[323675925,1714158650078,-500.0,0.00011238,2]
[323675926,1714158650089,-151.0,0.00011238,2]
[323675927,1714158650099,-625.38,0.00011238,2]
[323675928,1714158650109,-500.0,0.00011238,2]
[323675929,1714158650120,-500.0,0.00011238,2]
[323675930,1714158650130,-238.63211786,0.00011238,2]
[323675931,1714158650140,-500.0,0.00011238,2]
[323675932,1714158650151,-387.19,0.00011238,2]
[323675933,1714158650162,-500.0,0.00011238,2]
[323675934,1714158650177,-501.63488696,0.00011238,2]
[323675935,1714158650190,-500.0,0.00011238,2]
[323675936,1714158650205,-500.0,0.00011238,2]
[323675937,1714158650220,-500.0,0.00011238,2]
[323675938,1714158650233,-500.0,0.00011238,2]
[323675939,1714158650244,-500.0,0.00011238,2]
[323675940,1714158650257,-500.0,0.00011238,2]
[323675941,1714158650269,-500.0,0.00011238,2]
[323675942,1714158650281,-500.0,0.00011238,2]
[323675943,1714158650293,-678.31,0.00011238,2]
[323675944,1714158650305,-500.0,0.00011238,2]
[323675945,1714158650319,-334.53,0.00011238,2]
[323675946,1714158650332,-660.24,0.00011238,2]
[323675947,1714158650344,-500.0,0.00011238,2]
[323675948,1714158650356,-500.0,0.00011238,2]
[323675949,1714158650369,-500.0,0.00011238,2]
[323675950,1714158650380,-500.0,0.00011238,2]
[323675951,1714158650392,-771.22,0.00011238,2]
[323675952,1714158650404,-501.81947576,0.00011238,2]
[323675953,1714158650416,-500.0,0.00011238,2]
[323675954,1714158650429,-500.0,0.00011238,2]
[323675955,1714158650442,-500.0,0.00011238,2]
[323675956,1714158650454,-500.0,0.00011238,2]
[323675957,1714158650466,-500.0,0.00011238,2]
[323675958,1714158650479,-535.92,0.00011238,2]
[323675959,1714158650491,-500.0,0.00011238,2]
[323675960,1714158650501,-500.0,0.00011238,2]
[323675961,1714158650512,-1979.58,0.00011238,2]
[323675962,1714158650524,-500.0,0.00011238,2]
[323675963,1714158650538,-346.42,0.00011238,2]
[323675964,1714158650550,-500.0,0.00011238,2]
[323675965,1714158650563,-469.58,0.00011238,2]
[323675966,1714158650575,-1114.91,0.00011238,2]
[323675967,1714158650588,-180.02,0.00011238,2]
[323675968,1714158650600,-603.02,0.00011238,2]
[323675969,1714158650612,-500.0,0.00011238,2]
[323675970,1714158650623,-500.0,0.00011238,2]
[323675971,1714158650635,-500.0,0.00011238,2]
[323675972,1714158650647,-500.0,0.00011238,2]
[323675973,1714158650659,-500.0,0.00011238,2]
[323675974,1714158650672,-500.0,0.00011238,2]
[323675975,1714158650684,-500.0,0.00011238,2]
[323675976,1714158650697,-561.20596739,0.00011238,2]
[323675977,1714158650710,-2136.15,0.00011238,2]
[323675978,1714158650723,-658.17,0.00011238,2]
[323675979,1714158650735,-623.8,0.00011238,2]
[323675980,1714158650746,-500.0,0.00011238,2]
[323675981,1714158650756,-500.0,0.00011238,2]
[323675982,1714158650767,-500.0,0.00011238,2]
[323675983,1714158650777,-500.0,0.00011238,2]
[323675984,1714158650789,-500.0,0.00011238,2]
[323675985,1714158650801,-2812.92,0.00011238,2]
[323675986,1714158650813,-500.0,0.00011238,2]
[323675987,1714158650823,-500.0,0.00011238,2]
[323675988,1714158650836,-500.0,0.00011238,2]
[323675989,1714158650847,-500.0,0.00011238,2]
[323675990,1714158650858,-1656.0,0.00011238,2]
[323675991,1714158650868,-500.0,0.00011238,2]
[323675992,1714158650879,-500.0,0.00011238,2]
[323675993,1714158650889,-1599.28,0.00011238,2]
[323675994,1714158650900,-386.1,0.00011238,2]
[323675995,1714158650910,-2748.52,0.00011238,2]
[323675996,1714158650921,-500.0,0.00011238,2]
[323675997,1714158650931,-3872.27,0.00011238,2]
[323675998,1714158650943,-1112.23,0.00011238,2]
[323675999,1714158650954,-500.0,0.00011238,2]
[323676000,1714158650965,-1765.27,0.00011238,2]
[323676001,1714158650975,-1469.93,0.00011238,2]
[323676002,1714158650987,-8551.96,0.00011238,2]
[323676003,1714158650997,-693.5,0.00011238,2]
[323676004,1714158651008,-500.0,0.00011238,2]
[323676005,1714158651019,-5387.86,0.00011238,2]
[323676006,1714158651030,-2057.13,0.00011238,2]
[323676007,1714158651042,-500.0,0.00011238,2]
[323676008,1714158651052,-7732.94,0.00011238,2]
[323676009,1714158651063,-500.0,0.00011238,2]
[323676010,1714158651074,-1423.2,0.00011238,2]
[323676011,1714158651085,-968.37,0.00011238,2]
[323676012,1714158651096,-304.58,0.00011238,2]
[323676013,1714158651107,-3963.16,0.00011238,2]
[323676014,1714158651118,-2468.91,0.00011238,2]
[323676015,1714158651130,-1061.1,0.00011238,2]
[323676016,1714158651141,-500.0,0.00011238,2]
[323676017,1714158651152,-849.9,0.00011238,2]
[323676018,1714158651163,-502.35856832,0.00011238,2]
[323676019,1714158651177,-2166.55,0.00011238,2]
[323676020,1714158651188,-3602.34,0.00011238,2]
[323676021,1714158651199,-500.0,0.00011238,2]
[323676022,1714158651211,-500.0,0.00011238,2]
[323676023,1714158651223,-3467.57,0.00011238,2]
[323676024,1714158651234,-500.0,0.00011238,2]
[323676025,1714158651245,-4449.63,0.00011238,2]
[323676026,1714158651258,-521.47,0.00011238,2]
[323676027,1714158651269,-3762.94,0.00011238,2]
[323676028,1714158651280,-500.0,0.00011238,2]
[323676029,1714158651292,-6856.25,0.00011238,2]
[323676030,1714158651303,-500.0,0.00011238,2]
[323676031,1714158651315,-2252.03,0.00011238,2]
[323676032,1714158651326,-8259.6,0.00011238,2]
[323676033,1714158651338,-503.93929216,0.00011238,2]
[323676034,1714158651350,-531.28,0.00011238,2]
[323676035,1714158651361,-504.05367567,0.00011238,2]
[323676036,1714158651373,-500.0,0.00011238,2]
[323676037,1714158651383,-500.0,0.00011238,2]
[323676038,1714158651394,-500.0,0.00011238,2]
[323676039,1714158651406,-3781.94,0.00011238,2]
[323676040,1714158651418,-530.27,0.00011238,2]
[323676041,1714158651430,-500.0,0.00011238,2]
[323676042,1714158651442,-503.97108559,0.00011238,2]
[323676043,1714158651455,-500.0,0.00011238,2]
[323676044,1714158651466,-4591.12,0.00011238,2]
[323676045,1714158651478,-14906.01,0.00011238,2]
[323676046,1714158651493,-3011.67433,0.00011238,2]
[323676047,1714158651505,-500.0,0.00011238,2]
[323676048,1714158651516,-500.0,0.00011238,2]
[323676049,1714158651527,-500.0,0.00011238,2]
[323676050,1714158651538,-3011.67433,0.00011238,2]
[323676051,1714158651549,-1883.35,0.00011238,2]
[323676052,1714158651560,-500.0,0.00011238,2]
[323676053,1714158651572,-500.0,0.00011238,2]
[323676054,1714158651583,-157.01543514,0.00011238,2]
[323676055,1714158651594,-500.0,0.00011238,2]
[323676056,1714158651605,-500.0,0.00011238,2]
[323676057,1714158651616,-500.0,0.00011238,2]
[323676058,1714158651628,-500.0,0.00011238,2]
[323676059,1714158651640,-577.47,0.00011238,2]
[323676060,1714158651652,-500.0,0.00011238,2]
[323676061,1714158651664,-1257.74,0.00011238,2]
[323676062,1714158651675,-500.0,0.00011238,2]
[323676063,1714158651686,-500.0,0.00011238,2]
[323676064,1714158651698,-500.0,0.00011238,2]
[323676065,1714158651710,-210.34,0.00011238,2]
[323676066,1714158651721,-1028.84,0.00011238,2]
[323676067,1714158651732,-500.0,0.00011238,2]
[323676068,1714158651744,-1733.51,0.00011238,2]
[323676069,1714158651755,-5942.58,0.00011238,2]
[323676070,1714158651767,-500.0,0.00011238,2]
[323676071,1714158651779,-500.0,0.00011238,2]
[323676072,1714158651791,-500.0,0.00011238,2]
[323676073,1714158651802,-676.45,0.00011238,2]
[323676074,1714158651813,-758.53,0.00011238,2]
[323676075,1714158651823,-2184.94,0.00011238,2]
[323676076,1714158651834,-2320.43,0.00011238,2]
[323676077,1714158651846,-500.0,0.00011238,2]
[323676078,1714158651856,-500.0,0.00011238,2]
[323676079,1714158651868,-500.0,0.00011238,2]
[323676080,1714158651880,-3235.11,0.00011238,2]
[323676081,1714158651891,-1999.99,0.00011238,2]
[323676082,1714158651903,-1817.54,0.00011238,2]
[323676083,1714158651913,-500.0,0.00011238,2]
[323676084,1714158651925,-688.57,0.00011238,2]
[323676085,1714158651936,-500.0,0.00011238,2]
[323676086,1714158651947,-500.0,0.00011238,2]
[323676087,1714158651958,-500.0,0.00011238,2]
[323676088,1714158651969,-500.0,0.00011238,2]
[323676089,1714158651981,-500.0,0.00011238,2]
[323676090,1714158651992,-500.0,0.00011238,2]
[323676091,1714158652003,-500.0,0.00011238,2]
[323676092,1714158652015,-830.19,0.00011238,2]
[323676093,1714158652026,-500.0,0.00011238,2]
[323676094,1714158652037,-1867.94,0.00011238,2]
[323676095,1714158652049,-500.0,0.00011238,2]
[323676096,1714158652061,-500.0,0.00011238,2]
[323676097,1714158652073,-500.0,0.00011238,2]
[323676098,1714158652085,-500.0,0.00011238,2]